bitfinex-derivatives/quotes_BNBF0:USTF0_20250609
["timestamp","ask_amount","ask_price","bid_price","bid_amount"]
[1749481378305,1.14627621,655.65,654.65,0.30550675]
[1749481378505,1.14627621,655.64,654.65,0.30550675]
[1749481378710,1.14627621,655.63,654.65,0.30550675]
[1749481378910,1.14627621,655.62,654.65,0.30550675]
[1749481379106,1.14627621,655.61,654.65,0.30550675]
[1749481379411,1.14627621,655.6,654.65,0.30550675]
[1749481379608,1.14627621,655.59,654.65,0.30550675]
[1749481379809,1.398,655.66,654.65,0.30550675]
[1749481380009,1.14766145,655.65,654.65,0.30550675]
[1749481380210,1.14766145,655.64,654.65,0.30550675]
[1749481380410,1.14766145,655.63,654.65,0.30550675]
[1749481380610,1.14766145,655.62,654.65,0.30550675]
[1749481380811,1.14766145,655.61,654.65,0.30550675]
[1749481381012,1.14766145,655.6,654.65,0.30550675]
[1749481381211,1.14766145,655.59,654.65,0.30550675]
[1749481381413,1.14766145,655.58,654.65,0.30550675]
[1749481381615,1.398,655.66,654.65,0.30550675]
[1749481381816,1.14766496,655.65,654.65,0.30550675]
[1749481382014,1.14766496,655.64,654.65,0.30550675]
[1749481382216,1.14766496,655.63,654.65,0.30550675]
[1749481382421,1.14766496,655.62,654.65,0.30550675]
[1749481382621,1.14766496,655.61,654.65,0.30550675]
[1749481382821,1.14766496,655.6,654.65,0.30550675]
[1749481383017,1.14766496,655.59,654.65,0.30550675]
[1749481383217,1.398,655.66,654.65,0.30550675]
[1749481383419,1.14770743,655.65,654.65,0.30550675]
[1749481383719,1.14770743,655.64,654.65,0.30550675]
[1749481383919,1.14770743,655.63,654.65,0.30550675]
[1749481384120,1.14770743,655.62,654.65,0.30550675]
[1749481384322,1.398,655.66,654.65,0.30550675]
[1749481384518,1.14787509,655.65,654.65,0.30550675]
[1749481384722,1.14787509,655.64,654.65,0.30550675]
[1749481384917,1.398,655.66,654.65,0.30550675]
[1749481385221,1.1480634,655.65,654.65,0.30550675]
[1749481385418,1.398,655.66,654.65,0.30550675]
[1749481385618,1.14805312,655.65,654.65,0.30550675]
[1749481385922,1.398,655.66,654.65,0.30550675]
[1749481386118,1.14807875,655.65,654.65,0.30550675]
[1749481386323,1.398,655.66,654.65,0.30550675]
[1749481386524,1.14809379,655.65,654.65,0.30550675]
[1749481386723,1.14809379,655.64,654.65,0.30550675]
[1749481386920,1.398,655.66,654.65,0.30550675]
[1749481387124,1.1480673,655.65,654.65,0.30550675]
[1749481387327,1.398,655.66,654.65,0.30550675]
[1749481387522,1.14806916,655.65,654.65,0.30550675]
[1749481387722,1.14807583,655.64,654.65,0.30550675]
[1749481388022,1.398,655.66,654.65,0.30550675]
[1749481388325,1.14807548,655.65,654.65,0.30550675]
[1749481388521,1.398,655.66,654.65,0.30550675]
[1749481388821,1.14806376,655.65,654.65,0.30550675]
[1749481389021,1.398,655.66,654.65,0.30550675]
[1749481389224,1.14806376,655.65,654.65,0.30550675]
[1749481389426,1.398,655.66,654.65,0.30550675]
[1749481389625,1.14806056,655.65,654.65,0.30550675]
[1749481389822,1.398,655.66,654.65,0.30550675]
[1749481390022,1.14813355,655.65,654.65,0.30550675]
[1749481390223,1.398,655.66,654.65,0.30550675]
[1749481390425,1.14814214,655.65,654.65,0.30550675]
[1749481390724,1.398,655.66,654.65,0.30550675]
[1749481391027,1.14942515,655.65,654.65,0.30550675]
[1749481391223,1.398,655.66,654.65,0.30550675]
[1749481391422,1.14943721,655.65,654.65,0.30550675]
[1749481391622,1.14943721,655.64,654.65,0.30550675]
[1749481391823,1.398,655.66,654.65,0.30550675]
[1749481392023,1.14941961,655.65,654.65,0.30550675]
[1749481392222,1.14941961,655.64,654.65,0.30550675]
[1749481392428,1.398,655.66,654.65,0.30550675]
[1749481392722,1.14942465,655.65,654.65,0.30550675]
[1749481393023,1.14942465,655.64,654.65,0.30550675]
[1749481393222,1.398,655.66,654.65,0.30550675]
[1749481393424,1.14942172,655.65,654.65,0.30550675]
[1749481393629,1.398,655.66,654.65,0.30550675]
[1749481401238,0.26558702,655.71,654.65,0.30550675]
[1749481404437,0.26558702,655.71,654.67,3.80362461]
[1749481404637,1.54,655.7,654.69,0.30548809]
[1749481420152,1.54,655.7,654.84,3.80362461]
[1749481420350,1.54,655.7,654.85,0.30541345]
[1749481438563,1.14726595,655.69,654.85,0.30541345]
[1749481438762,1.54,655.7,654.85,0.30541345]
[1749481439460,1.14722984,655.69,654.85,0.30541345]
[1749481439661,0.26558702,655.71,654.85,0.30541345]
[1749481439861,1.14722984,655.7,654.85,0.30541345]
[1749481440062,1.14722984,655.69,654.85,0.30541345]
[1749481440361,0.26558702,655.71,654.85,0.30541345]
[1749481440656,1.14722984,655.7,654.85,0.30541345]
[1749481440861,1.14722984,655.69,654.85,0.30541345]
[1749481441059,0.26558702,655.71,654.85,0.30541345]
[1749481441259,1.14722616,655.7,654.85,0.30541345]
[1749481441558,1.14738507,655.69,654.85,0.30541345]
[1749481441758,0.26558702,655.71,654.85,0.30541345]
[1749481441959,1.14738645,655.7,654.85,0.30541345]
[1749481442158,1.14738645,655.69,654.85,0.30541345]
[1749481442364,0.26558702,655.71,654.85,0.30541345]
[1749481442662,1.14717966,655.7,654.85,0.30541345]
[1749481442858,1.14717966,655.69,654.85,0.30541345]
[1749481443057,1.719,655.69,654.85,0.30541345]
[1749481444963,1.14765302,655.68,654.85,0.30541345]
[1749481445167,1.719,655.69,654.85,0.30541345]
[1749481445863,1.14767198,655.68,654.85,0.30541345]
[1749481446068,1.719,655.69,654.85,0.30541345]
[1749481446367,1.14768905,655.68,654.85,0.30541345]
[1749481446569,1.719,655.69,654.85,0.30541345]
[1749481449169,1.14829933,655.68,654.85,0.30541345]
[1749481449367,1.719,655.69,654.85,0.30541345]
[1749481449566,1.14850932,655.68,654.85,0.30541345]
[1749481449870,1.719,655.69,654.85,0.30541345]
[1749481450171,1.14850932,655.68,654.85,0.30541345]
[1749481450368,1.719,655.69,654.85,0.30541345]
[1749481450571,1.14852202,655.68,654.85,0.30541345]
[1749481450771,1.14852202,655.67,654.85,0.30541345]
[1749481450972,1.719,655.69,654.85,0.30541345]
[1749481451168,1.14854337,655.68,654.85,0.30541345]
[1749481451368,1.14854337,655.67,654.85,0.30541345]
[1749481451573,1.719,655.69,654.85,0.30541345]
[1749481451769,1.14857277,655.68,654.85,0.30541345]
[1749481452068,1.14857277,655.67,654.85,0.30541345]
[1749481452372,1.719,655.69,654.85,0.30541345]
[1749481452566,1.14861329,655.68,654.85,0.30541345]
[1749481452769,1.14861329,655.67,654.85,0.30541345]
[1749481452972,1.719,655.69,654.85,0.30541345]
[1749481453168,1.14861329,655.68,654.85,0.30541345]
[1749481453370,1.14861329,655.67,654.85,0.30541345]
[1749481453673,1.719,655.69,654.85,0.30541345]
[1749481453875,1.14864924,655.68,654.85,0.30541345]
[1749481454170,0.26558702,655.71,654.85,0.30541345]
[1749481454373,1.14866126,655.7,654.85,0.30541345]
[1749481454670,1.14866126,655.69,654.85,0.30541345]
[1749481454873,1.14866126,655.68,654.85,0.30541345]
[1749481455170,0.26558702,655.71,654.85,0.30541345]
[1749481455375,1.14886308,655.7,654.85,0.30541345]
[1749481455672,1.14886308,655.69,654.85,0.30541345]
[1749481455871,1.14886308,655.68,654.85,0.30541345]
[1749481456170,0.26558702,655.71,654.85,0.30541345]
[1749481456469,1.1489091,655.7,654.85,0.30541345]
[1749481456676,1.1489091,655.69,654.85,0.30541345]
[1749481456870,1.1489091,655.68,654.85,0.30541345]
[1749481457074,1.191,655.7,654.85,0.30541345]
[1749481457274,1.14893797,655.69,654.85,0.30541345]
[1749481457571,1.14893797,655.68,654.85,0.30541345]
[1749481457874,1.14898255,655.67,654.85,0.30541345]
[1749481458075,1.191,655.7,654.85,0.30541345]
[1749481458277,1.14899174,655.69,654.85,0.30541345]
[1749481458472,1.14899174,655.68,654.85,0.30541345]
[1749481458672,1.14899174,655.67,654.85,0.30541345]
[1749481458874,1.191,655.7,654.85,0.30541345]
[1749481459075,1.14918169,655.69,654.85,0.30541345]
[1749481459278,1.14918169,655.68,654.85,0.30541345]
[1749481459475,1.14918169,655.67,654.85,0.30541345]
[1749481459675,1.191,655.7,654.85,0.30541345]
[1749481459880,1.14952727,655.69,654.85,0.30541345]
[1749481460075,1.14952727,655.68,654.85,0.30541345]
[1749481460278,1.191,655.7,654.85,0.30541345]
[1749481460479,1.14953683,655.69,654.85,0.30541345]
[1749481460677,1.14953683,655.68,654.85,0.30541345]
[1749481460876,1.191,655.7,654.85,0.30541345]
[1749481461080,1.14953553,655.69,654.85,0.30541345]
[1749481461381,1.14953553,655.68,654.85,0.30541345]
[1749481461577,1.191,655.7,654.85,0.30541345]
[1749481461881,1.14954753,655.69,654.85,0.30541345]
[1749481462079,1.14954753,655.68,654.85,0.30541345]
[1749481462277,1.191,655.7,654.85,0.30541345]
[1749481462476,1.14958136,655.69,654.85,0.30541345]
[1749481462775,1.14958136,655.68,654.85,0.30541345]
[1749481462980,1.191,655.7,654.85,0.30541345]
[1749481463280,1.14958136,655.69,654.85,0.30541345]
[1749481463477,1.14958136,655.68,654.85,0.30541345]
[1749481463677,1.191,655.7,654.85,0.30541345]
[1749481463875,1.14960151,655.69,654.85,0.30541345]
[1749481464177,1.14960151,655.68,654.85,0.30541345]
[1749481464376,1.191,655.7,654.85,0.30541345]
[1749481464578,1.1498032,655.69,654.85,0.30541345]
[1749481464777,1.1498032,655.68,654.85,0.30541345]
[1749481464976,1.191,655.7,654.85,0.30541345]
[1749481465178,1.15022311,655.69,654.85,0.30541345]
[1749481465377,1.15022311,655.68,654.85,0.30541345]
[1749481465578,1.191,655.7,654.85,0.30541345]
[1749481465881,1.15021846,655.69,654.85,0.30541345]
[1749481466075,1.15021846,655.68,654.85,0.30541345]
[1749481466277,1.191,655.7,654.85,0.30541345]
[1749481466478,1.15022693,655.69,654.85,0.30541345]
[1749481466681,1.15022693,655.68,654.85,0.30541345]
[1749481466978,1.191,655.7,654.85,0.30541345]
[1749481467278,1.15022602,655.69,654.85,0.30541345]
[1749481467482,1.15022602,655.68,654.85,0.30541345]
[1749481467683,1.191,655.7,654.85,0.30541345]
[1749481467878,1.15023261,655.69,654.85,0.30541345]
[1749481468083,1.15023261,655.68,654.85,0.30541345]
[1749481468280,1.191,655.7,654.85,0.30541345]
[1749481468581,1.15024329,655.69,654.85,0.30541345]
[1749481468883,1.15024329,655.68,654.85,0.30541345]
[1749481469179,1.191,655.7,654.85,0.30541345]
[1749481469384,1.15039611,655.69,654.85,0.30541345]
[1749481469582,1.15039611,655.68,654.85,0.30541345]
[1749481469785,1.191,655.7,654.85,0.30541345]
[1749481469986,1.1503953,655.69,654.85,0.30541345]
[1749481470286,1.1504036,655.68,654.85,0.30541345]
[1749481470586,1.191,655.7,654.85,0.30541345]
[1749481470782,1.15039605,655.69,654.85,0.30541345]
[1749481470988,1.191,655.7,654.85,0.30541345]
[1749481471182,1.15040393,655.69,654.85,0.30541345]
[1749481471482,1.191,655.7,654.85,0.30541345]
[1749481471682,1.15041957,655.69,654.85,0.30541345]
[1749481471885,1.15042175,655.68,654.85,0.30541345]
[1749481472089,1.191,655.7,654.85,0.30541345]
[1749481472285,1.15043064,655.69,654.85,0.30541345]
[1749481472485,1.15043064,655.68,654.85,0.30541345]
[1749481472690,1.191,655.7,654.85,0.30541345]
[1749481472887,1.15045299,655.69,654.85,0.30541345]
[1749481473090,1.15045299,655.68,654.85,0.30541345]
[1749481473287,1.15045299,655.67,654.85,0.30541345]
[1749481473493,1.191,655.7,654.85,0.30541345]
[1749481473689,1.15049013,655.69,654.85,0.30541345]
[1749481473891,1.15049013,655.68,654.85,0.30541345]
[1749481474092,1.15049013,655.67,654.85,0.30541345]
[1749481474294,1.191,655.7,654.85,0.30541345]
[1749481474493,1.15019929,655.69,654.85,0.30541345]
[1749481474689,1.191,655.7,654.85,0.30541345]
[1749481474690,1.15019929,655.68,654.85,0.30541345]
[1749481474890,1.15019929,655.67,654.85,0.30541345]
[1749481475193,1.191,655.7,654.85,0.30541345]
[1749481475394,1.15020731,655.69,654.85,0.30541345]
[1749481475690,1.15020731,655.68,654.85,0.30541345]
[1749481475893,1.15020731,655.67,654.85,0.30541345]
[1749481476189,1.191,655.7,654.85,0.30541345]
[1749481476393,1.15024299,655.69,654.85,0.30541345]
[1749481476595,1.15024299,655.68,654.85,0.30541345]
[1749481476795,1.15024299,655.67,654.85,0.30541345]
[1749481476995,1.191,655.7,654.85,0.30541345]
[1749481477191,1.15027218,655.69,654.85,0.30541345]
[1749481477392,1.15027218,655.68,654.85,0.30541345]
[1749481477590,1.15027218,655.67,654.85,0.30541345]
[1749481477892,1.191,655.7,654.85,0.30541345]
[1749481478195,1.15031952,655.69,654.85,0.30541345]
[1749481478391,1.15031952,655.68,654.85,0.30541345]
[1749481478695,1.15031952,655.67,654.85,0.30541345]
[1749481478892,0.26558702,655.71,654.85,0.30541345]
[1749481479090,1.15039072,655.7,654.85,0.30541345]
[1749481479291,1.15039072,655.69,654.85,0.30541345]
[1749481479490,1.15039072,655.68,654.85,0.30541345]
[1749481479692,1.15039072,655.67,654.85,0.30541345]
[1749481479892,1.15039072,655.66,654.85,0.30541345]
[1749481480092,0.26558702,655.71,654.85,0.30541345]
[1749481480296,1.15071675,655.7,654.85,0.30541345]
[1749481480493,1.15071675,655.69,654.85,0.30541345]
[1749481480692,1.15071675,655.68,654.85,0.30541345]
[1749481480997,1.15071675,655.67,654.85,0.30541345]
[1749481481196,1.15071675,655.66,654.85,0.30541345]
[1749481481394,1.314,655.68,654.85,0.30541345]
[1749481481593,1.15082066,655.67,654.85,0.30541345]
[1749481481897,1.15082066,655.66,654.85,0.30541345]
[1749481482096,1.314,655.68,654.85,0.30541345]
[1749481482297,1.15082974,655.67,654.85,0.30541345]
[1749481482494,1.15082974,655.66,654.85,0.30541345]
[1749481482797,1.314,655.68,654.85,0.30541345]
[1749481482994,1.15088807,655.67,654.85,0.30541345]
[1749481483194,1.15088807,655.66,654.85,0.30541345]
[1749481483394,1.314,655.68,654.85,0.30541345]
[1749481483591,1.15100004,655.67,654.85,0.30541345]
[1749481483794,1.15100004,655.66,654.85,0.30541345]
[1749481483993,1.314,655.68,654.85,0.30541345]
[1749481484197,1.15100195,655.67,654.85,0.30541345]
[1749481484396,1.15100195,655.66,654.85,0.30541345]
[1749481484700,1.15112779,655.65,654.85,0.30541345]
[1749481484896,1.314,655.68,654.85,0.30541345]
[1749481485197,1.15112582,655.67,654.85,0.30541345]
[1749481485396,1.15112582,655.66,654.85,0.30541345]
[1749481485596,1.15112582,655.65,654.85,0.30541345]
[1749481485795,1.314,655.68,654.85,0.30541345]
[1749481485994,1.1512263,655.67,654.85,0.30541345]
[1749481486295,1.15123135,655.66,654.85,0.30541345]
[1749481486494,1.15123135,655.65,654.85,0.30541345]
[1749481486795,1.314,655.68,654.85,0.30541345]
[1749481487096,1.15134002,655.67,654.85,0.30541345]
[1749481487299,1.15134002,655.66,654.85,0.30541345]
[1749481487499,1.15134002,655.65,654.85,0.30541345]
[1749481487696,1.15134002,655.64,654.85,0.30541345]
[1749481487900,1.314,655.68,654.85,0.30541345]
[1749481488097,1.15148213,655.67,654.85,0.30541345]
[1749481488299,1.15148213,655.66,654.85,0.30541345]
[1749481488495,1.15148213,655.65,654.85,0.30541345]
[1749481488701,1.15148213,655.64,654.85,0.30541345]
[1749481488901,1.314,655.68,654.85,0.30541345]
[1749481489198,1.15184726,655.67,654.85,0.30541345]
[1749481489399,1.15184726,655.66,654.85,0.30541345]
[1749481489697,1.15184726,655.65,654.85,0.30541345]
[1749481489899,1.314,655.68,654.85,0.30541345]
[1749481489900,1.15184726,655.64,654.85,0.30541345]
[1749481490100,1.314,655.68,654.85,0.30541345]
[1749481490399,1.15183656,655.67,654.85,0.30541345]
[1749481490601,1.15183656,655.66,654.85,0.30541345]
[1749481490800,1.15183656,655.65,654.85,0.30541345]
[1749481491003,1.314,655.68,654.85,0.30541345]
[1749481491302,1.15182105,655.67,654.85,0.30541345]
[1749481491598,1.15182105,655.66,654.85,0.30541345]
[1749481491804,1.15182105,655.65,654.85,0.30541345]
[1749481492000,1.15182105,655.64,654.85,0.30541345]
[1749481492205,1.314,655.68,654.85,0.30541345]
[1749481492404,1.1518228,655.67,654.85,0.30541345]
[1749481492605,1.1518228,655.66,654.85,0.30541345]
[1749481492802,1.1518228,655.65,654.85,0.30541345]
[1749481493006,1.314,655.68,654.85,0.30541345]
[1749481493207,1.15182528,655.67,654.85,0.30541345]
[1749481493505,1.314,655.68,654.85,0.30541345]
[1749481527035,0.2655242,655.88,654.85,0.30541345]
[1749481530144,1.486,655.87,654.85,0.30541345]
[1749481546554,1.486,655.87,654.89,3.79408218]
[1749481546854,1.486,655.87,654.9,0.30539013]
[1749481547457,1.486,655.87,654.9,4.09947231]
[1749481548454,1.486,655.87,654.9,0.30539013]
[1749481549054,1.486,655.87,654.92,3.79408218]
[1749481549255,1.486,655.87,654.93,0.30537614]
[1749481550958,1.14405481,655.86,654.93,0.30537614]
[1749481551255,1.14405481,655.85,654.93,0.30537614]
[1749481551459,1.14405481,655.84,654.93,0.30537614]
[1749481551760,1.486,655.87,654.93,0.30537614]
[1749481568167,0.26547862,655.95,654.93,0.30537614]
[1749481568368,1.14578743,655.94,654.93,0.30537614]
[1749481568569,0.26547862,655.95,654.93,0.30537614]
[1749481568871,1.14577258,655.94,654.93,0.30537614]
[1749481569068,0.26547862,655.95,654.93,0.30537614]
[1749481569268,1.14588223,655.94,654.93,0.30537614]
[1749481569569,0.26547862,655.95,654.93,0.30537614]
[1749481569772,1.14583361,655.94,654.93,0.30537614]
[1749481569971,0.26547862,655.95,654.93,0.30537614]
[1749481570272,1.14566934,655.94,654.93,0.30537614]
[1749481570471,1.14566934,655.93,654.93,0.30537614]
[1749481570673,1.799,655.93,654.93,0.30537614]
[1749481584484,1.1449976,655.92,654.93,0.30537614]
[1749481584685,1.1449976,655.91,654.93,0.30537614]
[1749481584883,1.799,655.93,654.93,0.30537614]
[1749481584884,1.1449976,655.9,654.93,0.30537614]
[1749481585188,1.799,655.93,654.93,0.30537614]
[1749481585386,1.1452699,655.92,654.93,0.30537614]
[1749481585587,1.1452699,655.91,654.93,0.30537614]
[1749481585886,1.1452699,655.9,654.93,0.30537614]
[1749481586086,1.799,655.93,654.93,0.30537614]
[1749481586388,1.14529367,655.92,654.93,0.30537614]
[1749481586590,1.14529367,655.91,654.93,0.30537614]
[1749481586791,1.14529367,655.9,654.93,0.30537614]
[1749481586988,1.799,655.93,654.93,0.30537614]
[1749481587291,1.14530328,655.92,654.93,0.30537614]
[1749481587491,1.14530328,655.91,654.93,0.30537614]
[1749481587787,1.14530328,655.9,654.93,0.30537614]
[1749481587993,1.799,655.93,654.93,0.30537614]
[1749481588190,1.14503307,655.92,654.93,0.30537614]
[1749481588390,1.14503307,655.91,654.93,0.30537614]
[1749481588591,1.14503307,655.9,654.93,0.30537614]
[1749481588886,1.799,655.93,654.93,0.30537614]
[1749481589089,1.14352672,655.92,654.93,0.30537614]
[1749481589291,1.799,655.93,654.93,0.30537614]
[1749481591691,0.26547862,655.95,654.93,0.30537614]
[1749481591889,1.14129187,655.94,654.93,0.30537614]
[1749481592090,0.26547862,655.95,654.93,0.30537614]
[1749481592294,1.1412947,655.94,654.93,0.30537614]
[1749481592591,0.26547862,655.95,654.93,0.30537614]
[1749481592894,1.14131521,655.94,654.93,0.30537614]
[1749481593094,1.14131521,655.93,654.93,0.30537614]
[1749481593291,0.26547862,655.95,654.93,0.30537614]
[1749481593492,1.14102541,655.94,654.93,0.30537614]
[1749481593691,0.26547862,655.95,654.93,0.30537614]
[1749481593892,1.1410469,655.94,654.93,0.30537614]
[1749481594095,0.26547862,655.95,654.93,0.30537614]
[1749481594295,1.14105017,655.94,654.93,0.30537614]
[1749481594593,0.26547862,655.95,654.93,0.30537614]
[1749481594791,1.14107392,655.94,654.93,0.30537614]
[1749481594996,0.26547862,655.95,654.93,0.30537614]
[1749481595196,1.14149723,655.94,654.93,0.30537614]
[1749481595397,1.833,655.94,654.93,0.30537614]
[1749481596596,1.14155891,655.93,654.93,0.30537614]
[1749481596899,1.833,655.94,654.93,0.30537614]
[1749481597098,1.1415577,655.93,654.93,0.30537614]
[1749481597292,1.833,655.94,654.93,0.30537614]
[1749481597493,1.14156941,655.93,654.93,0.30537614]
[1749481597697,1.833,655.94,654.93,0.30537614]
[1749481600297,1.833,655.94,654.93,4.09945832]
[1749481600599,1.833,655.94,654.94,3.79408218]
[1749481600901,1.833,655.94,654.96,0.30536215]
[1749481604398,1.833,655.94,654.96,4.09944433]
[1749481604701,1.833,655.94,654.97,3.79408218]
[1749481604899,1.833,655.94,654.98,0.30535283]
[1749481607003,1.13929157,655.93,654.98,0.30535283]
[1749481607199,1.833,655.94,654.98,0.30535283]
[1749481607500,1.13930339,655.93,654.98,0.30535283]
[1749481607704,1.833,655.94,654.98,0.30535283]
[1749481608002,1.13941157,655.93,654.98,0.30535283]
[1749481608200,1.833,655.94,654.98,0.30535283]
[1749481608406,1.13972887,655.93,654.98,0.30535283]
[1749481608704,1.833,655.94,654.98,0.30535283]
[1749481608903,1.13985124,655.93,654.98,0.30535283]
[1749481609103,1.833,655.94,654.98,0.30535283]
[1749481609299,1.14029742,655.93,654.98,0.30535283]
[1749481609503,1.14029742,655.92,654.98,0.30535283]
[1749481609703,1.833,655.94,654.98,0.30535283]
[1749481609904,1.14044771,655.93,654.98,0.30535283]
[1749481610101,1.14010301,655.92,654.98,0.30535283]
[1749481610305,1.833,655.94,654.98,0.30535283]
[1749481610306,1.14010987,655.91,654.98,0.30535283]
[1749481610605,1.833,655.94,654.98,0.30535283]
[1749481610800,1.14029964,655.93,654.98,0.30535283]
[1749481610999,1.14029964,655.92,654.98,0.30535283]
[1749481611202,1.14029964,655.91,654.98,0.30535283]
[1749481611400,1.14052619,655.9,654.98,0.30535283]
[1749481611602,1.833,655.94,654.98,0.30535283]
[1749481611805,1.14052587,655.93,654.98,0.30535283]
[1749481612005,1.14052587,655.92,654.98,0.30535283]
[1749481612202,1.14052587,655.91,654.98,0.30535283]
[1749481612407,1.833,655.94,654.98,0.30535283]
[1749481612608,1.14054942,655.93,654.98,0.30535283]
[1749481612807,1.14054942,655.92,654.98,0.30535283]
[1749481613008,1.14054942,655.91,654.98,0.30535283]
[1749481613202,1.833,655.94,654.98,4.09943501]
[1749481613404,1.14105114,655.93,654.98,4.09943501]
[1749481613607,1.14105114,655.92,654.99,3.79408218]
[1749481613803,1.23648042,656.12,655.01,0.30533884]
[1749481614007,1.14105333,656.11,655.01,0.30533884]
[1749481614206,1.14105333,656.1,655.01,0.30533884]
[1749481614409,1.14105333,656.09,655.01,0.30533884]
[1749481614709,1.14105333,656.08,655.01,0.30533884]
[1749481614907,1.09501402,656.13,655.01,0.30533884]
[1749481614908,1.14105333,656.07,655.01,0.30533884]
[1749481615204,1.14105333,656.06,655.01,0.30533884]
[1749481615505,1.14105333,656.05,655.01,0.30533884]
[1749481615705,1.14105333,656.04,655.01,0.30533884]
[1749481615909,1.14105333,656.03,655.03,3.79408218]
[1749481616204,2.76405333,656.02,655.05,0.3053202]
[1749481616403,1.14105333,656.01,655.1,3.79408218]
[1749481616605,1.14105333,656.0,655.11,0.30529224]
[1749481616906,1.14105333,655.99,655.11,0.30529224]
[1749481617103,1.14105333,655.98,655.11,0.30529224]
[1749481617308,1.14105333,655.97,655.11,0.30529224]
[1749481617505,1.14105333,655.96,655.11,0.30529224]
[1749481617709,1.14105333,655.95,655.11,0.30529224]
[1749481618009,1.14105333,655.94,655.11,0.30529224]
[1749481618205,1.14105333,655.93,655.11,0.30529224]
[1749481618411,1.14105333,655.92,655.11,0.30529224]
[1749481618711,1.623,656.02,655.11,4.09937442]
[1749481619010,1.14130625,656.01,655.11,0.30529224]
[1749481619210,1.14130625,656.0,655.11,0.30529224]
[1749481619410,1.14130625,655.99,655.11,0.30529224]
[1749481619709,1.14130625,655.98,655.12,3.79408218]
[1749481619905,1.14130625,655.97,655.13,0.30528292]
[1749481620107,1.14130625,655.96,655.13,0.30528292]
[1749481620312,1.14130625,655.95,655.13,0.30528292]
[1749481620605,1.14130625,655.94,655.13,0.30528292]
[1749481620808,1.1423798,655.93,655.13,0.30528292]
[1749481621012,1.1423798,655.92,655.13,0.30528292]
[1749481621310,1.623,656.02,655.13,0.30528292]
[1749481621512,1.1423798,656.01,655.13,0.30528292]
[1749481621711,1.1423798,656.0,655.13,0.30528292]
[1749481621909,1.1423798,655.99,655.13,0.30528292]
[1749481622108,1.1423798,655.98,655.13,0.30528292]
[1749481622310,1.1423798,655.97,655.13,0.30528292]
[1749481622509,1.1423798,655.96,655.13,0.30528292]
[1749481622713,1.1423798,655.95,655.13,0.30528292]
[1749481622910,1.1423798,655.94,655.13,0.30528292]
[1749481623111,1.1423798,655.93,655.13,0.30528292]
[1749481623308,1.1423798,655.92,655.13,0.30528292]
[1749481623510,1.623,656.02,655.13,0.30528292]
[1749481623810,1.14237198,656.01,655.13,0.30528292]
[1749481624108,1.14237198,656.0,655.13,0.30528292]
[1749481624314,1.14237198,655.99,655.13,0.30528292]
[1749481624514,1.14237198,655.98,655.13,0.30528292]
[1749481624714,1.14237198,655.97,655.13,0.30528292]
[1749481624910,1.14237198,655.96,655.13,0.30528292]
[1749481625111,1.14237198,655.95,655.13,0.30528292]
[1749481625316,1.14237198,655.94,655.13,0.30528292]
[1749481625513,1.14237198,655.93,655.13,0.30528292]
[1749481625717,1.623,656.02,655.13,0.30528292]
[1749481625915,1.14215605,656.01,655.13,4.0993651]
[1749481626116,1.14215605,656.0,655.13,4.0993651]
[1749481626413,1.14215605,655.99,655.13,4.0993651]
[1749481626714,1.14215605,655.98,655.13,4.0993651]
[1749481626914,1.14215605,655.97,655.13,4.0993651]
[1749481627214,1.14215605,655.96,655.13,4.0993651]
[1749481627417,1.14215605,655.95,655.13,4.0993651]
[1749481627718,1.14215605,655.94,655.14,3.79408218]
[1749481628014,1.623,656.02,655.15,0.3052736]
[1749481628215,1.14161197,656.01,655.15,0.3052736]
[1749481628414,1.14161197,656.0,655.15,0.3052736]
[1749481628613,1.14161197,655.99,655.15,0.3052736]
[1749481628814,1.14161197,655.98,655.15,0.3052736]
[1749481629015,1.14161197,655.97,655.15,0.3052736]
[1749481629215,1.14161197,655.96,655.15,0.3052736]
[1749481629415,1.14161197,655.95,655.15,0.3052736]
[1749481629618,1.14161197,655.94,655.15,0.3052736]
[1749481629914,1.623,656.02,655.15,0.3052736]
[1749481630115,1.14155836,656.01,655.15,0.3052736]
[1749481630318,1.14155836,656.0,655.15,0.3052736]
[1749481630619,1.14155836,655.99,655.15,0.3052736]
[1749481630818,1.14155836,655.98,655.15,0.3052736]
[1749481631015,1.14155836,655.97,655.15,0.3052736]
[1749481631317,1.14155836,655.96,655.15,0.3052736]
[1749481631516,1.14155836,655.95,655.15,0.3052736]
[1749481631715,1.14155836,655.94,655.15,0.3052736]
[1749481631914,1.623,656.02,655.15,0.3052736]
[1749481632119,1.14151257,656.01,655.15,0.3052736]
[1749481632319,1.14151257,656.0,655.15,0.3052736]
[1749481632616,1.14151257,655.99,655.15,0.3052736]
[1749481632815,1.14151257,655.98,655.15,0.3052736]
[1749481633119,1.14151257,655.97,655.15,0.3052736]